Cogmind - Beta 13 @@@ ROGUE MODE // 2024.05.19 @ 00:16:41 Player: Cat Result: Smashed by cave-in Performance ------------- Evolutions (0) 0 Regions Visited (2) 400 Robots Destroyed (23) 115 Value Destroyed (602) 602 Prototype IDs (2) 40 Alien Tech Used (0) 0 Bonus (0) 0 TOTAL SCORE: 1157 Bonus ------- None Cogmind --------- Core Integrity 0/250 Matter 252/300 Energy 98/100 System Corruption 2% Temperature Cool (0) Movement Treading (160) Location -10/Mines Parts ------- > --- POWER (1) -------- (None) > --- PROPULSION (2) --- Improved Treads Improved Treads > --- UTILITY (2) ------ Cooling System Core Shielding > --- WEAPON (2) ------- Light Cannon Mini Grenade Launcher > --- INVENTORY (5) ---- High-capacity Battery (250) Structural Scanner Mini Grenade Launcher Peak State ------------ > --- POWER ------------ Light Ion Engine > --- PROPULSION ------- Improved Aluminum Leg Improved Aluminum Leg > --- UTILITY ---------- Structural Scanner Visual Processing Unit > --- WEAPON ----------- Beam Rifle Beam Rifle > --- INVENTORY -------- Ion Engine High-capacity Battery Light Cannon Mini Grenade Launcher Mini Grenade Launcher [Rating: 12] Favorites ----------- Power Light Ion Engine Engine Light Ion Engine Propulsion Improved Treads Treads Improved Treads Leg Improved Aluminum Leg Utility Structural Scanner Device Structural Scanner Processor Visual Processing Unit Protection Core Shielding Weapon EM Shotgun Energy Gun EM Shotgun Ballistic Gun Light Assault Rifle Ballistic Cannon Light Cannon Launcher Mini Grenade Launcher Impact Weapon Hammer Build | -11 -10 -10 ------- Run | Yrd Mat Min Slots Evolved . | . . . Power . | . . . Propulsion . | . . . Utility . | . . . Weapon . | . . . Parts Attached 26 | 6 17 3 Power 3 | 1 2 . Engine 3 | 1 2 . Core . | . . . Reactor . | . . . Propulsion 6 | 2 4 . Treads 2 | . 2 . Leg 4 | 2 2 . Wheel . | . . . Hover . | . . . Flight . | . . . Utility 5 | . 4 1 Device 3 | . 3 . Storage . | . . . Processor 1 | . 1 . Hackware . | . . . Protection 1 | . . 1 Artifact . | . . . Weapon 12 | 3 7 2 Energy Gun 8 | 2 6 . Energy Cannon . | . . . Ballistic Gun 1 | 1 . . Ballistic Cannon 1 | . . 1 Launcher 1 | . . 1 Special Weapon . | . . . Impact Weapon 1 | . 1 . Slashing Weapon . | . . . Piercing Weapon . | . . . Special Melee Weapon . | . . . Unidentified Prototypes . | . . . Parts Lost 4 | . 2 2 Power 2 | . 1 1 Propulsion 1 | . 1 . Utility . | . . . Weapon 1 | . . 1 Highest Loss Streak 2 | . 2 2 To Critical Strikes . | . . . Average Slot Usage (%) 94 | . 95 86 Engine 12 | . 13 1 Treads 16 | . 15 28 Leg 9 | . 10 . Device 22 | . 22 18 Processor 2 | . 2 . Energy Gun 25 | . 27 2 Impact Weapon 1 | . . 4 Naked Turns . | . . . Heaviest Build 12 | 6 12 11 Greatest Support 46 | 20 46 46 Greatest Overweight (x) 2 | . 2 . Average Overweight (x) . | . . . Largest Inventory Capacity 5 | 5 5 5 Average Capacity 5 | 5 5 5 Most Carried 5 | 3 5 5 Average Carried 4 | 1 4 3 Final Capacity 5 | 5 5 5 Final Carried 5 | 3 5 3 Class Distribution -------------------- 100% | Mutant Dominant Class ---------------- Mutant | -10/Materials Mutant | -10/Mines Resources | -11 -10 -10 ----------- Run | Yrd Mat Min Matter Collected 455 | 265 160 30 Remotely . | . . . Salvage Created 707 | 47 600 60 Parts 51 | 2 39 10 Haulers Intercepted . | . . . Recyclers Shooed . | . . . Parts Field Recycled . | . . . Retrieved Matter . | . . . Parts Self-Destructed . | . . . Prevented . | . . . Kills | -11 -10 -10 ------- Run | Yrd Mat Min Combat Hostiles Destroyed 19 | 1 14 4 Guns 15 | 1 14 . Cannons 1 | . . 1 AOE 3 | . . 3 Classes Destroyed 4 | 1 3 . Operator 1 | . 1 . Watcher 3 | . 3 . Swarmer 6 | . 3 3 Grunt 13 | 1 11 1 Best Kill Streak 4 | 1 4 3 Combat Bots Only 4 | 1 4 3 Max Kills in Single Turn 2 | 1 2 2 Gunslinging 1 | . 1 . Exploded 2 | . . 2 Melee . | . . . Uniques/NPCs Destroyed . | . . . Combat | -11 -10 -10 -------- Run | Yrd Mat Min Hostile Shots Fired 111 | 6 76 29 Missed 26 | 3 20 3 Damage Taken 1195 | 34 708 453 Core 252 | . 132 120 Absorbed by Shields . | . . . Redirected to Shielding 15 | . . 15 Core Remaining (%) 100 | 100 . . Volleys Fired 63 | 5 47 11 Largest 2 | 2 2 2 Hottest 112 | 60 112 65 Shots Fired 117 | 10 94 13 Gun 108 | 10 94 4 Cannon 7 | . . 7 Launcher 2 | . . 2 Special . | . . . Kinetic 12 | 5 . 7 Thermal 72 | . 72 . Explosive 2 | . . 2 Electromagnetic 31 | 5 22 4 Robot Hit Streak 8 | 5 8 3 Robot Miss Streak 6 | 2 5 6 Penetration Max . | . . . Secondary Targets 3 | . 3 . Max Gunslinging Chain 1 | . 1 . Shots Hit Robots 75 | 6 60 9 Core Hits 37 | 2 28 7 Critical Kills . | . . . Critical Parts Destroyed . | . . . Critical Strikes 5 | . 4 1 Burn 4 | . 4 . Blast 1 | . . 1 Melee Attacks 4 | . . 4 Impact 4 | . . 4 Slashing . | . . . Piercing . | . . . Sneak Attacks . | . . . Combat Hostiles . | . . . Follow-up Attacks . | . . . Damage Inflicted 1257 | 65 856 336 Guns 969 | 65 856 48 Cannons 52 | . . 52 Explosions 161 | . . 161 Melee 75 | . . 75 Ramming . | . . . Kinetic 79 | 27 . 52 Thermal 617 | . 617 . Explosive 161 | . . 161 Electromagnetic 325 | 38 239 48 Impact 75 | . . 75 Slashing . | . . . Piercing . | . . . Highest Corruption 2 | . 2 2 Average Corruption 2 | . 2 2 Corruption Purged . | . . . Corruption Blocked . | . . . Effects 2 | . 1 1 Heat Flow Errors 1 | . . 1 Data Loss (minor) 1 | . 1 . Overload Shots . | . . . Overflow Damage 15 | . . 15 Projectiles 15 | . . 15 Explosions . | . . . Melee . | . . . Knockbacks . | . . . Impact . | . . . Kinetic . | . . . Secondary . | . . . Self-Inflicted Damage 73 | . . 73 Shots 2 | . . 2 Rammed . | . . . Targets Rammed . | . . . Kicked . | . . . Crushed . | . . . Highest Temperature 351 | 58 351 228 Average Temperature 128 | 34 135 134 Received Heat Transfer 504 | 18 324 162 Effects 3 | . 2 1 Energy Bleed 1 | . 1 . Interference 2 | . 1 1 Siege Activations . | . . . Robots Corrupted . | . . . Combat Hostiles . | . . . Parts Fried 1 | . 1 . Impact Corruptions . | . . . Robots Melted . | . . . Combat Hostiles . | . . . Parts Melted 5 | . 5 . Heat Transferred 1863 | . 1863 . Parts Sabotaged . | . . . Parts Stolen . | . . . Parts Stripped . | . . . Power Chain Reactions . | . . . Alert | -11 -10 -10 ------- Run | Yrd Mat Min Peak Influence 212 | 20 212 162 Initial 13 | . 13 . Average 52 | 3 57 42 Maximum Alert Level 1 | . 1 . Low Security (%) 98 | 100 98 100 Level 1 1 | . 1 . Level 2 . | . . . Level 3 . | . . . Level 4 . | . . . Level 5 . | . . . High Security . | . . . Max Security . | . . . Squads Dispatched 4 | . 4 . Investigation 2 | . 2 . Extermination . | . . . Reinforcement 2 | . 2 . Assault . | . . . Garrison . | . . . Intercept . | . . . Searches Triggered . | . . . Construction Impeded . | . . . Haulers Reinforced . | . . . Active Scanning Responses . | . . . Cargo Convoy Interrupts . | . . . Stealth | -11 -10 -10 --------- Run | Yrd Mat Min Distress Signals 1 | . 1 . Communications Jammed . | . . . Distress Signals . | . . . Times Spotted 26 | 1 19 6 Peak Tracking Total 4 | 1 4 4 Tactical Retreats 4 | . 1 3 Traps | -11 -10 -10 ------- Run | Yrd Mat Min Traps Triggered 4 | . 4 . Indirectly . | . . . Trap Hack Attempts . | . . . Triggered . | . . . Disarmed . | . . . Reprogrammed . | . . . Reused . | . . . Traps Extracted . | . . . Installed . | . . . Triggered . | . . . Machines | -11 -10 -10 ---------- Run | Yrd Mat Min Machines Disabled 1 | . 1 . Max in Single Turn 1 | . 1 . Machines Repaired . | . . . Machines Dismantled . | . . . Machines Sabotaged . | . . . Overloaded Fab Kills . | . . . Hacking | -11 -10 -10 --------- Run | Yrd Mat Min Machines Accessed 3 | . 3 . Terminals 2 | . 2 . Fabricators . | . . . Repair Stations . | . . . Recycling Units 1 | . 1 . Scanalyzers . | . . . Garrison Access . | . . . Total Hacks 6 | . 6 . Successful 3 | . 3 . Failed 3 | . 3 . Catastrophic . | . . . Database Lockouts . | . . . Manual . | . . . Terminals 4 | . 4 . Fabricators . | . . . Repair Stations . | . . . Recycling Units 2 | . 2 . Scanalyzers . | . . . Garrison Access . | . . . Terminal Hacks 1 | . 1 . Prototype ID Bank 1 | . 1 . Fabricator Hacks . | . . . Repair Station Hacks . | . . . Recycling Unit Hacks 2 | . 2 . Report Inventory 2 | . 2 . Scanalyzer . | . . . Garrison Access Hacks . | . . . Unauthorized Hacks . | . . . Terminals . | . . . Fabricators . | . . . Repair Stations . | . . . Recycling Units . | . . . Scanalyzers . | . . . Garrison Access . | . . . Data Cores Recovered 1 | . 1 . Used . | . . . Hacking Detections 2 | . 2 . Full Trace Events 1 | . 1 . Feedback Events . | . . . Feedback Blocked . | . . . Robot Schematics Acquired . | . . . Robots Built . | . . . Authchips . | . . . Time . | . . . Total Robot Build Rating . | . . . Part Schematics Acquired . | . . . Parts Built . | . . . Authchips . | . . . Time . | . . . Total Part Build Rating . | . . . Parts Repaired . | . . . Time . | . . . Parts Recycled . | . . . Recycled Matter . | . . . Retrieved Matter . | . . . Retrieved Components . | . . . Parts Scanalyzed . | . . . Part Schematics Acquired . | . . . Parts Damaged . | . . . Bothacking | -11 -10 -10 ------------ Run | Yrd Mat Min Used RIF Installer . | . . . Robots Hacked . | . . . Non-combat . | . . . Combat . | . . . Robot Hacks Applied . | . . . Relay Couplers Released . | . . . Fabnet Peak Effective % . | . . . Robots Rewired . | . . . Allies Hacked . | . . . Hacks Repelled . | . . . Allies | -11 -10 -10 -------- Run | Yrd Mat Min Total Allies . | . . . Largest Group . | . . . Highest-Rated Group . | . . . Highest-Rated Ally . | . . . Total Orders . | . . . Ally Attacks . | . . . Total Damage . | . . . Kills . | . . . Allies Corrupted . | . . . Allies Melted . | . . . Intel | -11 -10 -10 ------- Run | Yrd Mat Min Robot Analysis Total . | . . . Derelict Logs Recovered . | . . . Drone Launches . | . . . Drone Recoveries . | . . . Exploration | -11 -10 -10 ------------- Run | Yrd Mat Min Turns Passed 1632 | 103 1407 122 Spaces Moved 899 | 73 815 11 Core 19 | 18 1 . Treads 471 | . 460 11 Legs 409 | 55 354 . Wheels . | . . . Hover . | . . . Flight . | . . . Fastest Speed 50 | 50 120 160 Average Speed 139 | 102 142 160 Slowest Speed 160 | 120 160 160 Overloaded Moves . | . . . Propulsion Burnouts . | . . . Robots Hopped . | . . . Cave-ins Triggered 1 | . . 1 Exploration Rate (%) 34 | 6 94 4 Regions Visited 2 Branch Regions 1 Pre-discovered Areas . | . . . Known Exits Taken . | . . . Unknown Exits Taken 2 | 1 1 . Scrap Searched . | . . . Spaces Dug . | . . . Terrain Destroyed 19 | . . 19 Melee . | . . . Projectile . | . . . AOE 19 | . . 19 Terrain Rammed . | . . . Walls Destroyed . | . . . Machines Disabled . | . . . Actions | -11 -10 -10 --------- Run | Yrd Mat Min Total 1156 | 91 969 96 Wait 129 | . 63 66 Move 897 | 72 814 11 Hop . | . . . Pick Up 18 | 8 10 . Fast Attach 11 | . 11 . Attach 9 | 5 2 2 Detach . | . . . Swap 6 | 1 4 1 Drop 19 | . 18 1 Fire 63 | 5 47 11 Melee 4 | . . 4 Ram . | . . . Kick . | . . . Crush . | . . . Escape Stasis . | . . . Rewire . | . . . Trap . | . . . Miscellaneous . | . . . Route ------- -11/Scrapyard -10/Materials (discovered 5 exits: [*Mat x3] / [*Min] / [Sub]) -10/Mines History --------- Turn | Location | Event 2 | -11/Scrapyard | Met Revision 17 71 | -11/Scrapyard | Discovered new exit (range 8) 104 | -11/Scrapyard | Entered Materials 314 | -10/Materials | Build established: Mutant 418 | -10/Materials | Discovered new exit (range 10) 455 | -10/Materials | Discovered new exit (range 3) 792 | -10/Materials | Discovered new exit (range 15) 1126 | -10/Materials | Discovered new exit (range 15) 1270 | -10/Materials | Core integrity fell below 50% 1443 | -10/Materials | Discovered new exit (range 14) 1511 | -10/Materials | Entered Mines 1634 | -10/Mines | Crushed by falling debris 1634 | -10/Mines | Smashed by cave-in Last Messages --------------- System corrupted (+2). System corrupted: Component data lost. U-05 Engineer lays Concrete. LOCATION=UNKNOWN GOAL=ESCAPE Lgt. Ion Engine destroyed. G-47 Trooper misfires. EM Shotgun destroyed. G-47 Trooper Particle Gun blasted off. Destroyed Lgt. Nuclear Core. G-34 Mercenary destroyed. Acquired 30 matter. Dropped Hammer. System corrupted: Heat flow error (+275). Overheating: System interference. Mni. Grenade Launcher temporarily disabled. S-10 Pest destroyed. The unstable cave ceiling collapses. Crushed by falling debris. [Achievement: Unlikely Earthworm] Map ----- +----------------------------------------------------+ | ????????????????????????????????????? | | ????????????????????????????????????? | | ????????????????????????????????????? | | ????????????????????????????????????? | | ????????????????????????????????????? | | ????????????????????????????????????? | | ????????????????????????????????????? | | ????????????????????????????????????? | | ????????????????????????????????????? | | ????????????????????????????????????? | | ????????????????????????????????????? | | ????????????????????????????????????? | | ????????????????????????????????????? | | ????????????????????????????????????? | | ????????????????????????????????????? | | ????????????????????????????????????? | | ????????????????????????????????????? | | ????????????????????????????????????? | | ????????????? ?????????????????????? | | ??????????????# ???????##########??? | | ??????????????## ?????###########??? | | ??????????????## ### # ##??? | | ??????????????## # ##??? | | ??????????????### = == ##??? | | ??????????????### * %% ##??? | | ??????????????## # ##*@ =[! ##??? | | ??????????????# ??## ## / % ##??? | | ???????????????????????# ####??? | | ???????????????????????## #####??? | | ????????????????????????######??????? | | ????????????????????????????????????? | | ????????????????????????????????????? | | ????????????????????????????????????? | | ????????????????????????????????????? | | ????????????????????????????????????? | | ????????????????????????????????????? | | ????????????????????????????????????? | | ????????????????????????????????????? | | ????????????????????????????????????? | | ????????????????????????????????????? | | ????????????????????????????????????? | | ????????????????????????????????????? | | ????????????????????????????????????? | | ????????????????????????????????????? | | ????????????????????????????????????? | | ????????????????????????????????????? | | ????????????????????????????????????? | | ????????????????????????????????????? | | ????????????????????????????????????? | | ????????????????????????????????????? | +----------------------------------------------------+ Best States ------------- Heat Dissipation 47 Energy Generation 10 Energy Capacity 125 Matter Stores 300 Matter Capacity 300 Sight Range 18 Robot Scan Range 14 Terrain Scan Density 10 Core Shielding 20 Evasion (%) 55 Recoil Reduction 2 Item Schematics ----------------- None Robot Schematics ------------------ None Fabricated ------------ Nothing Alien Tech Used ----------------- None Achievements -------------- Storm Trooper Uninvited Guest Unlikely Earthworm Challenges ------------ None Game ------ Seed MetafieldBehemothPlating Manual? 0 Play Time 00:19:27 Cumulative 1.3 hours Start 2024.05.18 @ 23:58:52 End 2024.05.19 @ 00:16:41 Sessions 1 Manual Loads 0 Difficulty Rogue Special Mode None Game No. 3 Rogue 3 Adventurer 0 Explorer 0 Win Type - Total 0 Types 0/0/0/0/0/0/0/0/0 Lore% 1 Gallery% 3 Achievement% 3 Wizard Run 0 Options --------- Layout 1 ASCII 0 Keyboard 0 Movement Mouse Keybinds 0 Fullscreen 1 Font 24/Smallcaps Map View 50x35 Zoom Use 0% Tactical HUD 0 Map Filters NONE Filters NONE Steam 1 RUN: fe94f31b-5d1b-479a-8c7e-2215a8f51399